bitfinex-derivatives/quotes_SOLF0:USTF0_20260220
["timestamp","ask_amount","ask_price","bid_price","bid_amount"]
[1771600846854,7.54580094,83.562,83.481,4.68137621]
[1771600847251,9.84514611,83.57,83.481,4.68137621]
[1771600847252,7.54580094,83.56,83.481,4.68137621]
[1771600847456,9.84514611,83.57,83.461,4.68310737]
[1771600847457,7.54580094,83.549,83.461,4.68310737]
[1771600847651,10.7795,83.517,83.441,4.68310737]
[1771600847843,7.54580094,83.516,83.453,10.7877]
[1771600848044,7.54580094,83.516,83.441,4.68310737]
[1771600848245,10.7809,83.506,83.452,10.7878]
[1771600848648,7.54580094,83.505,83.42,71.84514611]
[1771600848849,7.54580094,83.505,83.42,9.84514611]
[1771600849055,7.54580094,83.505,83.42,14.71099267]
[1771600849254,7.54580094,83.502,83.443,10.7889]
[1771600849454,7.54580094,83.502,83.421,4.86584656]
[1771600849852,10.7816,83.501,83.421,4.86584656]
[1771600850748,7.54580094,83.519,83.431,4.90545806]
[1771600850948,11.10837875,83.551,83.42,9.84514611]
[1771600850949,7.54580094,83.499,83.42,9.84514611]
[1771600851150,10.7837,83.485,83.42,9.84514611]
[1771600851348,7.54580094,83.484,83.409,4.90712107]
[1771600851550,7.54580094,83.479,83.4,9.84514611]
[1771600851956,10.7848,83.476,83.4,9.84514611]
[1771600852151,7.54580094,83.479,83.401,5.03868504]
[1771600852353,7.54580094,83.499,83.421,5.03868504]
[1771600852651,8.34080624,83.515,83.441,5.03868504]
[1771600852850,7.54580094,83.518,83.441,5.03868504]
[1771600853246,8.34080624,83.517,83.42,9.84514611]
[1771600853445,7.54580094,83.515,83.42,9.84514611]
[1771600853654,10.7808,83.507,83.444,10.7888]
[1771600854157,8.34080624,83.506,83.421,5.06846475]
[1771600854353,18.32780094,83.497,83.434,10.7901]
[1771600854961,10.7842,83.481,83.422,10.7916]
[1771600855153,10.7842,83.481,83.421,5.06846475]
[1771600855154,7.54580094,83.496,83.421,5.06846475]
[1771600855355,7.54580094,83.496,83.431,5.07006292]
[1771600855757,7.54580094,83.496,83.448,10.7883]
[1771600856156,7.54580094,83.496,83.439,10.7895]
[1771600856357,7.54580094,83.517,83.431,5.07006292]
[1771600856556,7.54580094,83.517,83.451,5.12667495]
[1771600856752,18.32540094,83.516,83.451,5.12667495]
[1771600856959,7.54580094,83.516,83.451,5.12667495]
[1771600857255,15.79699991,83.537,83.451,5.12667495]
[1771600857461,7.54580094,83.537,83.47,9.84514611]
[1771600857855,7.54580094,83.514,83.456,10.7873]
[1771600858256,7.54580094,83.514,83.431,5.11623254]
[1771600858451,7.54580094,83.513,83.431,5.11623254]
[1771600859862,9.84514611,83.52,83.453,10.7876]
[1771600859863,7.54580094,83.508,83.453,10.7876]
[1771600860456,10.7808,83.507,83.453,10.7876]
[1771600860663,7.54580094,83.506,83.431,5.11623254]
[1771600860955,7.54580094,83.519,83.441,5.33816948]
[1771600861151,7.54580094,83.539,83.461,5.33991603]
[1771600861356,7.54580094,83.539,83.48,9.84514611]
[1771600861556,15.79843543,83.569,83.517,10.7794]
[1771600861756,7.54580094,83.569,83.517,10.7794]
[1771600862361,7.54580094,83.569,83.5,9.84514611]
[1771600862567,7.54580094,83.567,83.481,5.39422113]
[1771600862758,7.54580094,83.561,83.481,5.39422113]
[1771600862959,7.54580094,83.561,83.5,9.84514611]
[1771600863358,7.54580094,83.561,83.514,10.7797]
[1771600863767,7.54580094,83.584,83.501,5.39576644]
[1771600863964,8.25263449,83.594,83.544,10.7758]
[1771600864163,7.54580094,83.624,83.541,5.23580333]
[1771600864363,7.54580094,83.624,83.495,189.2881]
[1771600864364,8.25403418,83.639,83.581,5.23580333]
[1771600864564,7.54580094,83.658,83.561,5.23580333]
[1771600864864,7.54580094,83.658,83.518,167.6772]
[1771600864865,11.88594285,83.687,83.62,9.84514611]
[1771600865165,11.88594285,83.687,83.621,7.1919201]
[1771600865357,31.58393854,83.722,83.621,7.1919201]
[1771600865563,9.84514611,83.69,83.6,9.84514611]
[1771600865967,9.84514611,83.67,83.582,10.771]
[1771600866159,9.84514611,83.67,83.583,7.10656069]
[1771600866470,10.7633,83.643,83.583,7.10656069]
[1771600866663,9.84514611,83.67,83.583,7.10656069]
[1771600866861,7.66515717,83.669,83.583,7.10656069]
[1771600867063,18.42505717,83.669,83.591,7.57335192]
[1771600867273,7.73490691,83.668,83.591,7.57335192]
[1771600867668,7.73490691,83.666,83.57,71.84514611]
[1771600867869,7.73490691,83.649,83.55,17.41849803]
[1771600868073,9.84514611,83.63,83.551,7.57335192]
[1771600868265,7.73490691,83.624,83.551,7.57335192]
[1771600868660,7.73490691,83.623,83.551,7.57335192]
[1771600868870,7.73490691,83.647,83.551,7.57335192]
[1771600869071,7.73490691,83.629,83.531,7.57335192]
[1771600869269,10.7674,83.611,83.542,10.7761]
[1771600869460,10.7674,83.611,83.531,7.57335192]
[1771600869660,7.73490691,83.629,83.531,7.57335192]
[1771600869661,7.73490691,83.629,83.56,9.84514611]
[1771600869867,10.7624,83.65,83.571,7.57335192]
[1771600870369,10.7635,83.641,83.574,10.772]
[1771600870573,7.73490691,83.639,83.571,7.57335192]
[1771600870769,7.73490691,83.639,83.53,71.84514611]
[1771600870973,7.73490691,83.607,83.532,10.7774]
[1771600871273,7.73490691,83.607,83.533,7.57335192]
[1771600871675,9.84514611,83.64,83.551,7.57335192]
[1771600871875,7.73490691,83.639,83.551,7.57335192]
[1771600872069,10.7658,83.623,83.553,10.7747]
[1771600872269,7.73490691,83.639,83.554,7.57335192]
[1771600872466,10.7658,83.623,83.554,7.57335192]
[1771600872670,7.73490691,83.639,83.554,7.57335192]
[1771600872977,7.73490691,83.663,83.571,7.57335192]
[1771600873269,7.73490691,83.65,83.577,10.7716]
[1771600873472,7.73490691,83.65,83.571,7.57335192]
[1771600873664,7.73490691,83.649,83.571,7.57335192]
[1771600873864,18.49930691,83.634,83.571,7.57335192]
[1771600874069,7.73490691,83.629,83.531,7.57335192]
[1771600874468,7.73490691,83.609,83.531,7.57335192]
[1771600874864,7.73490691,83.629,83.531,7.57335192]
[1771600875069,167.3669,83.674,83.532,7.57335192]
[1771600875070,7.73490691,83.608,83.532,7.57335192]
[1771600875476,10.7696,83.594,83.532,7.57335192]
[1771600875680,7.73490691,83.614,83.532,7.57335192]
[1771600876183,10.7701,83.59,83.532,7.57335192]
[1771600876380,7.73490691,83.615,83.532,7.57335192]
[1771600876675,7.73490691,83.599,83.511,7.57335192]
[1771600876870,7.73490691,83.579,83.5,9.84514611]
[1771600877070,7.73490691,83.579,83.49,7.57335192]
[1771600877271,10.7726,83.57,83.503,10.7812]
[1771600877470,7.73490691,83.569,83.49,7.57335192]
[1771600877674,10.7768,83.538,83.47,10.7854]
[1771600877877,7.73490691,83.529,83.44,17.41849803]
[1771600878071,7.73490691,83.529,83.441,7.57335192]
[1771600878274,7.73490691,83.529,83.458,10.787]
[1771600878473,7.73490691,83.529,83.42,62.0]
[1771600878474,9.84514611,83.55,83.461,7.57335192]
[1771600878668,7.73490691,83.552,83.461,7.57335192]
[1771600879076,7.73490691,83.552,83.485,7.57335192]
[1771600879278,7.73490691,83.573,83.485,7.57335192]
[1771600879472,7.73490691,83.573,83.501,7.57335192]
[1771600879870,10.7724,83.572,83.506,7.57335192]
[1771600880173,7.73490691,83.599,83.506,7.57335192]
[1771600880571,7.73490691,83.578,83.506,7.57335192]
[1771600881568,7.73490691,83.557,83.472,10.7852]
[1771600882175,10.7765,83.54,83.472,10.7852]
[1771600882375,7.73490691,83.583,83.491,7.57335192]
[1771600882576,10.7745,83.556,83.491,7.57335192]
[1771600883186,9.84514611,83.55,83.47,9.84514611]
[1771600883475,7.73490691,83.569,83.471,7.57335192]
[1771600883674,7.73490691,83.569,83.48,10.7842]
[1771600883882,7.73490691,83.559,83.48,10.7842]
[1771600884075,7.73490691,83.559,83.471,7.57335192]
[1771600884076,7.73490691,83.559,83.472,10.7852]
[1771600884285,7.73490691,83.559,83.473,7.57335192]
[1771600884479,7.73490691,83.58,83.473,7.57335192]
[1771600884684,10.7736,83.562,83.473,7.57335192]
[1771600884881,10.7736,83.562,83.492,7.57335192]
[1771600885385,7.73490691,83.58,83.516,10.7795]
[1771600885581,7.73490691,83.58,83.513,7.57335192]
[1771600885784,10.7715,83.579,83.513,7.57335192]
[1771600886085,10.7715,83.579,83.513,18.35325192]
[1771600886280,10.7726,83.57,83.491,7.57335192]
[1771600886678,167.4651,83.625,83.49,25.08863087]
[1771600886679,7.73490691,83.616,83.51,7.57335192]
[1771600886877,10.774,83.559,83.491,7.57335192]
[1771600887290,10.774,83.559,83.5,10.7816]
[1771600887485,7.73490691,83.569,83.5,10.7816]
[1771600887781,10.7741,83.559,83.5,10.7816]
[1771600888186,7.73490691,83.558,83.468,7.57335192]
[1771600888488,7.73490691,83.549,83.468,7.57335192]
[1771600888890,10.7766,83.539,83.481,10.7841]
[1771600889378,10.7754,83.548,83.481,10.7841]
[1771600889584,10.7754,83.548,83.489,10.783]
[1771600890090,18.50750691,83.571,83.489,7.57335192]
[1771600890285,7.73490691,83.571,83.501,10.7814]
[1771600890685,7.73490691,83.571,83.51,10.7802]
[1771600891680,7.73490691,83.571,83.518,10.7792]
[1771600891990,7.73490691,83.609,83.519,7.57335192]
[1771600892191,10.7721,83.574,83.519,7.57335192]
[1771600892392,7.73490691,83.588,83.52,10.779]
[1771600892893,10.7686,83.602,83.541,10.7763]
[1771600893091,7.73490691,83.607,83.519,7.57335192]
[1771600893593,7.73490691,83.583,83.497,7.57335192]
[1771600894485,7.73490691,83.583,83.517,7.57335192]
[1771600895483,10.7713,83.58,83.517,18.35265192]
[1771600895685,10.7713,83.58,83.49,37.62406896]
[1771600895891,7.73490691,83.605,83.518,7.57335192]
[1771600896088,10.7678,83.608,83.538,7.57335192]
[1771600896294,7.73490691,83.628,83.538,7.57335192]
[1771600896789,7.73490691,83.628,83.566,10.7731]
[1771600896985,7.73490691,83.628,83.538,7.57335192]
[1771600897784,10.769,83.598,83.542,10.7761]
[1771600897983,7.9157286,83.604,83.512,7.74653354]
[1771600898193,7.9157286,83.604,83.528,10.7779]
[1771600898389,7.9157286,83.604,83.512,7.74653354]
[1771600898787,7.9157286,83.604,83.533,7.74653354]
[1771600899795,10.7685,83.603,83.545,10.7758]
[1771600899982,10.7685,83.603,83.533,7.74653354]
[1771600899983,7.9157286,83.604,83.533,7.74653354]
[1771600900392,7.9157286,83.604,83.512,7.74653354]
[1771600900882,10.771,83.583,83.527,10.7781]
[1771600901187,7.9157286,83.604,83.512,7.74653354]
[1771600901382,10.7731,83.566,83.512,7.74653354]
[1771600901792,7.9157286,83.576,83.512,7.74653354]
[1771600902288,7.9157286,83.576,83.491,7.74653354]
[1771600902889,7.9157286,83.576,83.52,10.779]
[1771600903196,7.9157286,83.619,83.512,7.74653354]
[1771600903588,37.62406896,83.66,83.535,7.74653354]
[1771600903898,7.9157286,83.659,83.571,7.74653354]
[1771600904093,7.9157286,83.707,83.571,7.74653354]
[1771600904301,7.9157286,83.707,83.548,167.6172]
[1771600904302,7.9157286,83.685,83.601,7.74653354]
[1771600904494,7.9157286,83.721,83.611,7.74653354]
[1771600904992,7.9157286,83.709,83.611,7.74653354]
[1771600905193,10.7583,83.681,83.611,7.74653354]
[1771600905494,7.9157286,83.683,83.611,7.74653354]
[1771600905687,7.9157286,83.712,83.611,7.74653354]
[1771600905892,7.9157286,83.712,83.631,7.74653354]
[1771600906093,7.9157286,83.734,83.651,7.74653354]
[1771600906395,7.9157286,83.729,83.651,7.74653354]
[1771600906594,7.9157286,83.719,83.631,7.74653354]
[1771600908092,7.9157286,83.742,83.651,7.74653354]
[1771600908602,7.9157286,83.729,83.651,7.74653354]
[1771600908994,7.9157286,83.752,83.671,7.74653354]
[1771600909292,14.68803465,83.83,83.65,9.79349123]
[1771600909293,7.9157286,83.778,83.712,10.7542]
[1771600909493,7.9157286,83.778,83.691,7.74653354]
[1771600909886,14.68803465,83.855,83.65,177.20719123]
[1771600909887,7.9157286,83.764,83.685,10.7577]
[1771600910090,7.9157286,83.749,83.667,7.74653354]
[1771600910488,7.9157286,83.774,83.688,7.74653354]
[1771600910691,7.9157286,83.774,83.691,7.74653354]
[1771600910887,7.9157286,83.774,83.705,10.7551]
[1771600911097,7.9157286,83.774,83.691,7.74653354]
[1771600911397,7.9157286,83.774,83.703,10.7554]
[1771600911595,7.9157286,83.774,83.691,7.74653354]
[1771600912094,7.9157286,83.774,83.695,7.74653354]
[1771600912598,7.9157286,83.774,83.631,167.4518]
[1771600912599,7.9157286,83.758,83.68,10.7584]
[1771600912795,7.9157286,83.739,83.649,7.74653354]
[1771600913099,7.9157286,83.719,83.65,10.7623]
[1771600913391,7.9157286,83.719,83.649,7.74653354]
[1771600913699,7.9157286,83.736,83.662,10.7606]
[1771600914100,7.9157286,83.719,83.651,7.74653354]
[1771600914894,7.9157286,83.719,83.653,10.7618]
[1771600915098,7.9157286,83.719,83.651,7.74653354]
[1771600915494,9.79349123,83.74,83.67,10.7596]
[1771600915696,7.9157286,83.739,83.651,7.74653354]
[1771600915896,17.70921983,83.72,83.651,7.74653354]
[1771600916294,9.79349123,83.74,83.651,7.74653354]
[1771600916691,9.79349123,83.77,83.675,7.74653354]
[1771600916903,7.9157286,83.749,83.675,7.74653354]
[1771600917498,7.9157286,83.797,83.675,7.74653354]
[1771600917703,7.9157286,83.772,83.69,9.79349123]
[1771600918003,7.9157286,83.759,83.674,7.74653354]
[1771600918401,10.7516,83.734,83.674,7.74653354]
[1771600918593,36.0,83.783,83.663,10.7606]
[1771600918594,7.9157286,83.733,83.663,10.7606]
[1771600919193,7.9157286,83.733,83.673,10.7593]
[1771600919393,7.9157286,83.759,83.652,7.74653354]
[1771600919595,7.9157286,83.739,83.652,7.74653354]
[1771600919796,7.9157286,83.738,83.661,10.7608]
[1771600919997,7.9157286,83.738,83.662,7.74653354]
[1771600920605,7.9157286,83.737,83.662,7.74653354]
[1771600920800,9.79349123,83.76,83.671,7.74653354]
[1771600921004,10.7508,83.74,83.673,10.7592]
[1771600921197,7.9157286,83.759,83.671,7.74653354]
[1771600921504,7.9157286,83.759,83.681,7.74653354]
[1771600921804,7.9157286,83.759,83.706,10.755]
[1771600922193,7.9157286,83.759,83.681,7.74653354]
[1771600922399,7.9157286,83.759,83.696,10.7563]
[1771600922594,7.9157286,83.759,83.681,7.74653354]
[1771600922798,7.9157286,83.738,83.674,10.7591]
[1771600922995,7.9157286,83.719,83.635,7.74653354]
[1771600923502,7.9157286,83.719,83.658,10.7612]
[1771600923707,7.9157286,83.719,83.635,7.74653354]
[1771600924002,7.9157286,83.719,83.631,7.74653354]
[1771600924506,7.9157286,83.714,83.631,7.74653354]
[1771600924810,7.9157286,83.709,83.631,7.74653354]
[1771600925397,7.9157286,83.709,83.653,10.7619]
[1771600925599,17.70921983,83.73,83.651,7.74653354]
[1771600925899,8.03363484,83.727,83.651,7.74653354]
[1771600926097,8.03363484,83.727,83.631,7.64277178]
[1771600926602,8.03363484,83.723,83.663,10.7605]
[1771600926804,8.03363484,83.723,83.631,7.64277178]
[1771600927199,10.7538,83.716,83.631,7.64277178]
[1771600927395,8.03363484,83.723,83.631,7.64277178]
[1771600927900,7.83824752,83.724,83.631,7.64277178]
[1771600928297,18.59234752,83.714,83.653,10.7618]
[1771600928499,7.83824752,83.714,83.631,7.64277178]
[1771600929005,7.83824752,83.709,83.631,7.64277178]
[1771600929399,7.83824752,83.709,83.63,10.7648]
[1771600929599,7.83824752,83.689,83.63,10.7648]
[1771600929902,7.83824752,83.689,83.611,18.66331457]
[1771600929903,10.7602,83.667,83.611,18.66331457]
[1771600930109,7.83824752,83.669,83.588,7.89611457]
[1771600930304,7.83824752,83.669,83.573,7.89611457]
[1771600930505,7.83824752,83.649,83.573,7.89611457]
[1771600930705,7.83824752,83.649,83.572,20.92]
[1771600931008,7.83824752,83.629,83.572,20.92]
[1771600932199,10.7625,83.649,83.573,7.89611457]
[1771600932399,7.83824752,83.651,83.573,7.89611457]
[1771600932600,7.83824752,83.649,83.573,7.89611457]
[1771600932807,10.7609,83.661,83.593,10.7695]
[1771600933003,10.7609,83.661,83.573,7.89611457]
[1771600933207,9.79349123,83.67,83.603,10.7683]
[1771600933410,17.63173875,83.67,83.603,10.7683]
[1771600933704,10.7614,83.657,83.59,9.79349123]
[1771600933909,7.83824752,83.656,83.573,7.89611457]
[1771600934306,10.762,83.653,83.589,10.7701]
[1771600934502,7.83824752,83.649,83.573,7.89611457]
[1771600934703,7.83824752,83.649,83.572,20.92]
[1771600934899,10.7652,83.628,83.572,20.92]
[1771600935112,7.83824752,83.649,83.572,20.92]
[1771600935507,10.7642,83.636,83.572,20.92]
[1771600935709,7.83824752,83.635,83.572,20.92]
[1771600936413,7.83824752,83.635,83.578,10.7715]
[1771600936911,10.7631,83.644,83.578,10.7715]
[1771600937112,10.7631,83.644,83.587,10.7703]
[1771600937409,10.7631,83.644,83.573,7.89611457]
[1771600937614,10.7631,83.644,83.586,10.7704]
[1771600938316,11.06465656,83.715,83.572,20.92]
[1771600938317,9.79349123,83.67,83.595,7.89611457]
[1771600938715,10.7588,83.677,83.595,7.89611457]
[1771600939017,7.83824752,83.679,83.595,7.89611457]
[1771600939315,7.83824752,83.679,83.59,9.79349123]
[1771600939316,7.83824752,83.701,83.611,7.89611457]
[1771600940912,7.83824752,83.701,83.59,9.79349123]
[1771600940913,7.83824752,83.701,83.632,7.89611457]
[1771600941115,7.83824752,83.709,83.632,7.89611457]
[1771600941414,7.83824752,83.709,83.59,9.79349123]
[1771600941415,7.83824752,83.709,83.611,7.89611457]
[1771600941812,10.7589,83.677,83.613,10.767]
[1771600942122,10.7589,83.677,83.611,7.89611457]
[1771600942512,10.7604,83.665,83.611,18.66341457]
[1771600942709,10.7604,83.665,83.611,7.89611457]
[1771600942914,7.83824752,83.71,83.631,7.89611457]
[1771600943311,7.83824752,83.71,83.657,10.7614]
[1771600943712,7.83824752,83.71,83.631,7.89611457]
[1771600943908,10.7558,83.701,83.644,10.763]
[1771600944315,7.83824752,83.71,83.644,10.763]
[1771600944513,7.83824752,83.71,83.59,177.32619123]
[1771600944514,9.79349123,83.73,83.651,7.89611457]
[1771600944708,7.83824752,83.732,83.651,7.89611457]
[1771600945706,7.83824752,83.732,83.661,7.89611457]
[1771600945912,7.83824752,83.732,83.683,10.758]
[1771600946211,7.83824752,83.732,83.661,7.89611457]
[1771600946407,10.7534,83.719,83.65,9.79349123]
[1771600946612,7.83824752,83.718,83.65,9.79349123]
[1771600947813,10.7538,83.717,83.655,10.7616]
[1771600948210,10.7549,83.708,83.646,10.7627]
[1771600948414,7.83824752,83.708,83.641,7.89611457]
[1771600948607,7.83824752,83.73,83.641,7.89611457]
[1771600948808,10.7497,83.749,83.689,10.7572]
[1771600949108,7.83824752,83.739,83.641,7.89611457]
[1771600949516,7.83824752,83.727,83.641,7.89611457]
[1771600950816,7.83824752,83.727,83.674,10.7591]
[1771600951119,7.83824752,83.727,83.641,7.89611457]
[1771600952119,7.83824752,83.747,83.671,7.89611457]
[1771600953117,7.83824752,83.739,83.673,10.7592]
[1771600953914,10.7531,83.722,83.673,10.7592]
[1771600954712,10.752,83.731,83.673,10.7592]
[1771600955216,7.83824752,83.739,83.65,79.68633945]
[1771600955217,18.58914752,83.739,83.683,10.758]
[1771600955518,7.83824752,83.739,83.651,7.89611457]
[1771600955919,7.83824752,83.713,83.631,7.89611457]
[1771600957015,7.83824752,83.713,83.647,10.7626]
[1771600957417,7.44364556,83.676,83.611,7.67011285]
[1771600957717,9.79022488,83.7,83.573,7.67011285]
[1771600957718,7.44364556,83.659,83.573,7.67011285]
[1771600958221,10.7615,83.657,83.605,10.768]
[1771600958822,7.44364556,83.659,83.615,10.7667]
[1771600959320,10.7586,83.679,83.615,7.67011285]
[1771600960023,10.7586,83.679,83.621,10.7659]
[1771600960414,7.44364556,83.682,83.639,10.7637]
[1771600960612,7.44364556,83.699,83.615,7.67011285]
[1771600961612,7.44364556,83.687,83.615,7.67011285]
[1771600961813,7.44364556,83.679,83.595,7.67011285]
[1771600962212,10.7602,83.666,83.613,10.767]
[1771600962612,7.44364556,83.679,83.613,10.767]
[1771600962819,10.7602,83.667,83.613,10.767]
[1771600963126,7.44364556,83.679,83.621,10.766]
[1771600963425,7.44364556,83.679,83.595,7.67011285]
[1771600963426,10.7597,83.671,83.595,7.67011285]
[1771600963722,9.79022488,83.69,83.595,7.67011285]
[1771600963917,9.79022488,83.69,83.611,7.67011285]
[1771600964120,20.54742488,83.69,83.637,10.7639]
[1771600964321,9.79022488,83.69,83.611,7.67011285]
[1771600964622,17.23387044,83.69,83.611,7.67011285]
[1771600964822,32.56655656,83.739,83.61,9.79022488]
[1771600964823,7.44364556,83.709,83.632,7.67011285]
[1771600965726,10.7567,83.694,83.632,7.67011285]
[1771600965921,7.44364556,83.709,83.632,7.67011285]
[1771600966121,7.44364556,83.709,83.61,9.79022488]
[1771600966122,7.44364556,83.709,83.611,7.67011285]
[1771600966429,10.7578,83.685,83.611,7.67011285]
[1771600967421,7.44364556,83.689,83.611,7.67011285]
[1771600967625,7.44364556,83.715,83.611,7.67011285]
[1771600967925,7.44364556,83.715,83.631,7.67011285]
[1771600968125,7.44364556,83.735,83.651,7.67011285]
[1771600968631,18.19644556,83.725,83.676,10.7589]
[1771600968927,9.79022488,83.74,83.651,7.67011285]
[1771600969130,10.7511,83.738,83.651,7.67011285]
[1771600969625,7.44364556,83.739,83.651,7.67011285]
[1771600970027,7.44364556,83.739,83.653,7.67011285]
[1771600970327,9.79022488,83.76,83.671,7.67011285]
[1771600970727,18.19144556,83.763,83.671,7.67011285]
[1771600970921,7.44364556,83.783,83.691,7.67011285]
[1771600971323,7.44364556,83.783,83.71,17.46033773]
[1771600971534,7.44364556,83.783,83.71,7.67011285]
[1771600971925,7.44364556,83.772,83.712,10.7542]
[1771600972120,7.44364556,83.772,83.71,7.67011285]
[1771600972430,10.7468,83.771,83.71,7.67011285]
[1771600972632,7.44364556,83.77,83.71,7.67011285]
[1771600972829,7.44364556,83.77,83.711,7.67011285]
[1771600973031,7.44364556,83.77,83.714,10.754]
[1771600973522,7.44364556,83.77,83.711,7.67011285]
[1771600974127,7.44364556,83.77,83.722,10.753]
[1771600974531,7.44364556,83.77,83.692,17.84]
[1771600974721,7.44364556,83.758,83.693,7.67011285]
[1771600974930,7.44364556,83.779,83.693,7.67011285]
[1771600976228,7.44364556,83.779,83.699,10.7559]
[1771600976429,7.44364556,83.759,83.692,17.84]
[1771600977223,7.44364556,83.759,83.702,10.7555]
[1771600977534,7.44364556,83.779,83.693,7.67011285]
[1771600978030,7.44364556,83.774,83.693,7.67011285]
[1771600978230,167.1016,83.807,83.692,17.84]
[1771600978231,7.44364556,83.749,83.692,17.84]
[1771600978735,10.7494,83.751,83.693,7.67011285]
[1771600978931,18.19304556,83.751,83.693,7.67011285]
[1771600979531,18.19304556,83.751,83.696,10.7564]
[1771600979731,7.44364556,83.769,83.693,7.67011285]
[1771600980328,7.44364556,83.769,83.711,7.67011285]
[1771600980535,7.44364556,83.789,83.711,7.67011285]
[1771600981530,7.44364556,83.789,83.742,10.7504]
[1771600981733,7.44364556,83.809,83.731,7.67011285]
[1771600982127,10.7434,83.798,83.747,10.7497]
[1771600982330,7.44364556,83.809,83.731,7.67011285]
[1771600982730,7.44364556,83.809,83.761,10.7479]
[1771600983730,7.44364556,83.809,83.731,7.67011285]
[1771600984327,7.44364556,83.778,83.693,7.67011285]
[1771600984533,7.44364556,83.778,83.711,7.67011285]
[1771600984927,7.44364556,83.778,83.733,10.7516]
[1771600985142,7.44364556,83.778,83.711,7.67011285]
[1771600985639,7.44364556,83.778,83.692,25.51011285]
[1771600986237,8.07776286,83.759,83.692,25.51011285]
[1771600986640,8.07776286,83.759,83.692,17.84]
[1771600986837,10.7509,83.739,83.692,17.84]
[1771600987035,8.07776286,83.759,83.692,17.84]
[1771600987339,8.07776286,83.759,83.7,10.7557]
[1771600987536,8.07776286,83.759,83.692,17.84]
[1771600987537,8.07776286,83.759,83.693,7.32738985]
[1771600987934,10.7487,83.756,83.705,10.7551]
[1771600988331,10.7487,83.756,83.693,7.32738985]
[1771600988536,10.7487,83.756,83.701,10.7556]
[1771600988932,7.99733304,83.784,83.701,7.32738985]
[1771600989136,7.99733304,83.784,83.722,10.753]
[1771600989335,10.7493,83.752,83.701,7.32738985]
[1771600989635,7.99733304,83.779,83.719,10.7534]
[1771600989846,7.99733304,83.779,83.701,7.32738985]
[1771600990343,7.99733304,83.759,83.692,17.84]
[1771600990740,7.99733304,83.759,83.692,28.5968]
[1771600991146,7.99733304,83.759,83.692,17.84]
[1771600991447,7.99733304,83.759,83.692,25.16738985]
[1771600991839,10.7487,83.756,83.71,10.7545]
[1771600992039,7.99733304,83.759,83.693,7.32738985]
[1771600992349,10.7509,83.739,83.693,7.32738985]
[1771600992535,7.99733304,83.759,83.693,10.7567]
[1771600992741,7.99733304,83.759,83.692,17.84]
[1771600994244,10.7518,83.732,83.692,17.84]
[1771600994751,10.7508,83.74,83.692,17.84]
[1771600995041,17.78755792,83.76,83.693,7.32738985]
[1771600995237,7.99733304,83.76,83.699,10.7559]
[1771600995436,7.99733304,83.76,83.693,7.32738985]
[1771600996848,9.79022488,83.77,83.693,7.32738985]
[1771600997345,7.99733304,83.769,83.693,7.32738985]
[1771600998250,10.7491,83.753,83.698,10.756]
[1771600998442,10.7491,83.753,83.693,7.32738985]
[1771600998842,10.7481,83.761,83.693,7.32738985]
[1771600999047,7.99733304,83.769,83.693,7.32738985]
[1771600999742,10.7491,83.753,83.703,10.7554]
[1771600999948,36.0,83.808,83.692,17.84]
[1771600999949,7.99733304,83.749,83.692,17.84]
[1771601000447,10.7534,83.72,83.692,17.84]
[1771601000647,7.99733304,83.731,83.692,17.84]
[1771601002449,10.7527,83.725,83.692,17.84]
[1771601002947,7.99733304,83.731,83.692,17.84]
[1771601002948,10.7536,83.718,83.692,17.84]
[1771601003150,7.99733304,83.719,83.641,7.32738985]
[1771601003547,10.7552,83.706,83.661,10.7608]
[1771601003950,7.99733304,83.738,83.651,7.32738985]
[1771601004161,7.99733304,83.738,83.675,10.759]
[1771601004356,7.99733304,83.738,83.651,7.32738985]
[1771601005048,10.7548,83.709,83.659,10.7611]
[1771601005844,10.7548,83.709,83.659,23.9911]
[1771601006450,10.7561,83.699,83.659,13.23]
[1771601006649,17.78755792,83.72,83.659,13.23]
[1771601007055,7.99733304,83.72,83.659,13.23]
[1771601007454,7.99733304,83.72,83.66,7.32738985]
[1771601007752,10.753,83.723,83.675,10.7591]
[1771601008051,9.79022488,83.75,83.659,13.23]
[1771601008052,7.99733304,83.72,83.659,13.23]
[1771601008260,7.99733304,83.72,83.66,7.32738985]
[1771601008757,7.99733304,83.74,83.66,7.32738985]
[1771601009149,17.78755792,83.74,83.671,10.7596]
[1771601009354,7.99733304,83.739,83.66,7.32738985]
[1771601009754,10.7509,83.739,83.687,10.7575]
[1771601009954,7.99733304,83.758,83.683,7.32738985]
[1771601010355,10.7506,83.742,83.695,10.7565]
[1771601010752,7.99733304,83.758,83.683,7.32738985]